[Event "Titled Tuesday Blitz June 6 Late 2023"]
[White "Machidon, Cristi"]
[Black "Rodriguez Santiago, Jaime"]
[WhiteFideId "13904590"]
[BlackFideId "3100898"]
[WhiteElo "2355"]
[BlackElo "2025"]
[Result "1-0"]
[Round "5"]
[TimeControl "180+2"]
[Date "2023.06.07"]
[WhiteClock "0:00:17"]
[BlackClock "0:00:14"]
[Board "92"]

1. e4 {[%clk 0:02:57]}  c6 {[%clk 0:02:59]} 2. d3 {[%clk 0:02:57]}  d5 {[%clk 0:02:58]} 3. Nf3 {[%clk 0:02:58]}  dxe4 {[%clk 0:02:58]} 4. dxe4 {[%clk 0:02:59]}  Qxd1+ {[%clk 0:02:58]} 5. Kxd1 {[%clk 0:03:00]}  Bg4 {[%clk 0:02:57]} 6. Be2 {[%clk 0:03:00]}  Nd7 {[%clk 0:02:56]} 7. Nfd2 {[%clk 0:03:00]}  Bxe2+ {[%clk 0:02:56]} 8. Kxe2 {[%clk 0:03:01]}  Ngf6 {[%clk 0:02:53]} 9. f3 {[%clk 0:03:01]}  e6 {[%clk 0:02:53]} 10. a4 {[%clk 0:03:01]}  Be7 {[%clk 0:02:43]} 11. Nc4 {[%clk 0:02:59]}  O-O {[%clk 0:02:41]} 12. Be3 {[%clk 0:02:53]}  h6 {[%clk 0:02:39]} 13. Nbd2 {[%clk 0:02:49]}  Rfd8 {[%clk 0:02:38]} 14. Na5 {[%clk 0:02:40]}  Rdb8 {[%clk 0:02:22]} 15. Ndb3 {[%clk 0:02:27]}  Bf8 {[%clk 0:01:38]} 16. Rhd1 {[%clk 0:02:19]}  c5 {[%clk 0:01:31]} 17. Rd2 {[%clk 0:02:03]}  b6 {[%clk 0:01:30]} 18. Nc4 {[%clk 0:02:03]}  Rc8 {[%clk 0:01:15]} 19. Rad1 {[%clk 0:02:01]}  Nb8 {[%clk 0:01:09]} 20. a5 {[%clk 0:01:46]}  b5 {[%clk 0:00:56]} 21. Ne5 {[%clk 0:01:07]}  c4 {[%clk 0:00:52]} 22. Nd4 {[%clk 0:01:05]}  a6 {[%clk 0:00:49]} 23. c3 {[%clk 0:00:58]}  Ne8 {[%clk 0:00:27]} 24. Nc2 {[%clk 0:00:45]}  Nf6 {[%clk 0:00:20]} 25. Rd8 {[%clk 0:00:41]}  Rxd8 {[%clk 0:00:08]} 26. Rxd8 {[%clk 0:00:42]}  g6 {[%clk 0:00:05]} 27. Bc5 {[%clk 0:00:34]}  Nh7 {[%clk 0:00:05]} 28. Nc6 {[%clk 0:00:31]}  Nxc6 {[%clk 0:00:04]} 29. Rxa8 {[%clk 0:00:31]}  Nxa5 {[%clk 0:00:04]} 30. Bxf8 {[%clk 0:00:29]}  Nxf8 {[%clk 0:00:05]} 31. Rxa6 {[%clk 0:00:27]}  Nb3 {[%clk 0:00:06]} 32. Nd4 {[%clk 0:00:26]}  Nc1+ {[%clk 0:00:07]} 33. Kd2 {[%clk 0:00:25]}  Nd3 {[%clk 0:00:08]} 34. b3 {[%clk 0:00:25]}  Nf2 {[%clk 0:00:07]} 35. bxc4 {[%clk 0:00:24]}  bxc4 {[%clk 0:00:07]} 36. Rc6 {[%clk 0:00:23]}  Kg7 {[%clk 0:00:07]} 37. Rxc4 {[%clk 0:00:22]}  Nd7 {[%clk 0:00:08]} 38. Ra4 {[%clk 0:00:21]}  Ne5 {[%clk 0:00:09]} 39. Ke2 {[%clk 0:00:21]}  Nh1 {[%clk 0:00:09]} 40. f4 {[%clk 0:00:18]}  Ng4 {[%clk 0:00:09]} 41. Nf3 {[%clk 0:00:18]}  Ngf2 {[%clk 0:00:09]} 42. Ra1 {[%clk 0:00:17]}  h5 {[%clk 0:00:09]} 43. Ke3 {[%clk 0:00:17]}  h4 {[%clk 0:00:09]} 44. h3 {[%clk 0:00:15]}  f6 {[%clk 0:00:08]} 45. Nxh4 {[%clk 0:00:15]}  Kh6 {[%clk 0:00:09]} 46. Nf3 {[%clk 0:00:15]}  g5 {[%clk 0:00:09]} 47. fxg5+ {[%clk 0:00:15]}  Kg6 {[%clk 0:00:09]} 48. c4 {[%clk 0:00:16]}  e5 {[%clk 0:00:10]} 49. c5 {[%clk 0:00:16]}  f5 {[%clk 0:00:10]} 50. Nxe5+ {[%clk 0:00:16]}  Kxg5 {[%clk 0:00:10]} 51. Nf3+ {[%clk 0:00:15]}  Kf6 {[%clk 0:00:10]} 52. e5+ {[%clk 0:00:15]}  Ke6 {[%clk 0:00:10]} 53. c6 {[%clk 0:00:16]}  f4+ {[%clk 0:00:11]} 54. Kd4 {[%clk 0:00:16]}  Nd3 {[%clk 0:00:12]} 55. Kxd3 {[%clk 0:00:16]}  Nf2+ {[%clk 0:00:13]} 56. Kd4 {[%clk 0:00:16]}  Ne4 {[%clk 0:00:14]} 57. Kxe4 {[%clk 0:00:17]} 1-0


[Site "https://www.chess.com"]

[Event "Titled Tuesday Blitz June 6 Late 2023"]
[White "D`Arruda, Ricardo D."]
[Black "Simonovic, Miroslav"]
[WhiteFideId "100692"]
[BlackFideId "919152"]
[WhiteElo "2531"]
[BlackElo "2075"]
[Result "1-0"]
[Round "5"]
[TimeControl "180+2"]
[Date "2023.06.07"]
[WhiteClock "0:01:37"]
[BlackClock "0:00:35"]
[Board "95"]

1. d4 {[%clk 0:02:47]}  Nf6 {[%clk 0:02:59]} 2. Nf3 {[%clk 0:02:47]}  c5 {[%clk 0:02:59]} 3. d5 {[%clk 0:02:45]}  b5 {[%clk 0:02:59]} 4. c4 {[%clk 0:02:43]}  bxc4 {[%clk 0:02:59]} 5. Nc3 {[%clk 0:02:42]}  d6 {[%clk 0:02:57]} 6. e4 {[%clk 0:02:42]}  Nbd7 {[%clk 0:02:56]} 7. Bxc4 {[%clk 0:02:41]}  g6 {[%clk 0:02:56]} 8. O-O {[%clk 0:02:41]}  Bg7 {[%clk 0:02:57]} 9. Re1 {[%clk 0:02:40]}  Ng4 {[%clk 0:02:53]} 10. Bf4 {[%clk 0:02:37]}  O-O {[%clk 0:02:52]} 11. Qd2 {[%clk 0:02:36]}  Nge5 {[%clk 0:02:49]} 12. Nxe5 {[%clk 0:02:34]}  Nxe5 {[%clk 0:02:50]} 13. Bf1 {[%clk 0:02:29]}  Rb8 {[%clk 0:02:39]} 14. Rab1 {[%clk 0:02:25]}  Qa5 {[%clk 0:02:36]} 15. Bh6 {[%clk 0:02:24]}  Ba6 {[%clk 0:02:34]} 16. Bxg7 {[%clk 0:02:22]}  Kxg7 {[%clk 0:02:33]} 17. Bxa6 {[%clk 0:02:21]}  Qxa6 {[%clk 0:02:34]} 18. b3 {[%clk 0:02:21]}  Qd3 {[%clk 0:02:26]} 19. Red1 {[%clk 0:02:12]}  Qxd2 {[%clk 0:02:23]} 20. Rxd2 {[%clk 0:02:13]}  Rb7 {[%clk 0:02:08]} 21. f4 {[%clk 0:02:12]}  Nd7 {[%clk 0:02:01]} 22. Re1 {[%clk 0:02:12]}  Rfb8 {[%clk 0:02:01]} 23. e5 {[%clk 0:02:10]}  Nf8 {[%clk 0:01:46]} 24. Ne4 {[%clk 0:02:06]}  Rb4 {[%clk 0:01:38]} 25. exd6 {[%clk 0:02:02]}  exd6 {[%clk 0:01:39]} 26. Nxd6 {[%clk 0:02:02]}  Rxf4 {[%clk 0:01:37]} 27. Re7 {[%clk 0:01:59]}  Rd8 {[%clk 0:01:29]} 28. Nc4 {[%clk 0:01:59]}  Rd4 {[%clk 0:01:20]} 29. Rxd4 {[%clk 0:01:56]}  cxd4 {[%clk 0:01:21]} 30. d6 {[%clk 0:01:56]}  d3 {[%clk 0:01:12]} 31. Kf2 {[%clk 0:01:55]}  Kf6 {[%clk 0:01:00]} 32. Rxa7 {[%clk 0:01:53]}  Nd7 {[%clk 0:00:52]} 33. Ke3 {[%clk 0:01:51]}  Nc5 {[%clk 0:00:52]} 34. b4 {[%clk 0:01:48]}  d2 {[%clk 0:00:38]} 35. Kxd2 {[%clk 0:01:45]}  Ne4+ {[%clk 0:00:38]} 36. Kc2 {[%clk 0:01:45]}  Nxd6 {[%clk 0:00:38]} 37. Ra6 {[%clk 0:01:45]}  Ke7 {[%clk 0:00:37]} 38. Nxd6 {[%clk 0:01:43]}  Rxd6 {[%clk 0:00:37]} 39. Rxd6 {[%clk 0:01:43]}  Kxd6 {[%clk 0:00:38]} 40. a4 {[%clk 0:01:43]}  f5 {[%clk 0:00:37]} 41. a5 {[%clk 0:01:42]}  Kd5 {[%clk 0:00:34]} 42. a6 {[%clk 0:01:41]}  Kc6 {[%clk 0:00:34]} 43. b5+ {[%clk 0:01:40]}  Kb6 {[%clk 0:00:33]} 44. Kd3 {[%clk 0:01:40]}  g5 {[%clk 0:00:33]} 45. Kd4 {[%clk 0:01:40]}  f4 {[%clk 0:00:33]} 46. Ke4 {[%clk 0:01:40]}  h6 {[%clk 0:00:32]} 47. Kf5 {[%clk 0:01:40]}  Ka7 {[%clk 0:00:32]} 48. h3 {[%clk 0:01:38]}  Kb6 {[%clk 0:00:32]} 49. Kg6 {[%clk 0:01:38]}  f3 {[%clk 0:00:32]} 50. gxf3 {[%clk 0:01:38]}  Kxb5 {[%clk 0:00:33]} 51. a7 {[%clk 0:01:37]}  Ka6 {[%clk 0:00:34]} 52. a8=Q+ {[%clk 0:01:37]}  Kb6 {[%clk 0:00:35]} 53. Qe4 {[%clk 0:01:37]} 1-0


[Site "https://www.chess.com"]

[Event "Titled Tuesday Blitz June 6 Late 2023"]
[White "Wang, Alexander J"]
[Black "Janaszak, Dawid"]
[WhiteFideId "30955270"]
[BlackFideId "1119206"]
[WhiteElo "2271"]
[BlackElo "2220"]
[Result "0-1"]
[Round "5"]
[TimeControl "180+2"]
[Date "2023.06.07"]
[WhiteClock "0:02:34"]
[BlackClock "0:02:24"]
[Board "96"]

1. e4 {[%clk 0:03:00]}  c5 {[%clk 0:02:59]} 2. Nf3 {[%clk 0:03:00]}  Nc6 {[%clk 0:02:59]} 3. d4 {[%clk 0:03:01]}  cxd4 {[%clk 0:03:00]} 4. Nxd4 {[%clk 0:03:00]}  g6 {[%clk 0:03:00]} 5. Nc3 {[%clk 0:02:59]}  Bg7 {[%clk 0:03:00]} 6. Be3 {[%clk 0:02:59]}  Nf6 {[%clk 0:03:01]} 7. Bc4 {[%clk 0:02:56]}  O-O {[%clk 0:03:01]} 8. Bb3 {[%clk 0:02:55]}  Re8 {[%clk 0:02:50]} 9. f3 {[%clk 0:02:54]}  e6 {[%clk 0:02:47]} 10. Qd2 {[%clk 0:02:48]}  d5 {[%clk 0:02:47]} 11. O-O-O {[%clk 0:02:46]}  dxe4 {[%clk 0:02:27]} 12. Nxc6 {[%clk 0:02:37]}  Qxd2+ {[%clk 0:02:25]} 13. Rxd2 {[%clk 0:02:36]}  bxc6 {[%clk 0:02:26]} 14. fxe4 {[%clk 0:02:37]}  Ng4 {[%clk 0:02:25]} 15. Bd4 {[%clk 0:02:34]}  Bh6 {[%clk 0:02:24]} 0-1


[Site "https://www.chess.com"]

[Event "Titled Tuesday Blitz June 6 Late 2023"]
[White "Jaskolka, Tomasz"]
[Black "Cagara, Paulina"]
[WhiteFideId "1170791"]
[BlackFideId "1124870"]
[WhiteElo "2155"]
[BlackElo "1967"]
[Result "0-1"]
[Round "5"]
[TimeControl "180+2"]
[Date "2023.06.07"]
[WhiteClock "0:00:14"]
[BlackClock "0:00:54"]
[Board "99"]

1. d4 {[%clk 0:03:00]}  f5 {[%clk 0:02:58]} 2. Bg5 {[%clk 0:02:59]}  h6 {[%clk 0:02:58]} 3. Bh4 {[%clk 0:02:59]}  g5 {[%clk 0:02:58]} 4. Bg3 {[%clk 0:02:47]}  Nf6 {[%clk 0:02:58]} 5. e3 {[%clk 0:02:47]}  Bg7 {[%clk 0:02:56]} 6. h4 {[%clk 0:02:45]}  g4 {[%clk 0:02:56]} 7. Ne2 {[%clk 0:02:44]}  d6 {[%clk 0:02:50]} 8. Nf4 {[%clk 0:02:43]}  O-O {[%clk 0:02:45]} 9. Bc4+ {[%clk 0:02:38]}  Kh7 {[%clk 0:02:43]} 10. Nc3 {[%clk 0:02:09]}  Nc6 {[%clk 0:02:32]} 11. Ne6 {[%clk 0:01:48]}  Bxe6 {[%clk 0:02:30]} 12. Bxe6 {[%clk 0:01:48]}  Nh5 {[%clk 0:02:18]} 13. Qd3 {[%clk 0:01:47]}  Nb4 {[%clk 0:01:57]} 14. Bxf5+ {[%clk 0:01:43]}  Kh8 {[%clk 0:01:56]} 15. Qb5 {[%clk 0:01:34]}  c5 {[%clk 0:01:44]} 16. dxc5 {[%clk 0:01:27]}  Rxf5 {[%clk 0:01:39]} 17. Qxb4 {[%clk 0:01:25]}  Nxg3 {[%clk 0:01:37]} 18. fxg3 {[%clk 0:01:25]}  dxc5 {[%clk 0:01:36]} 19. Qxg4 {[%clk 0:01:22]}  Bxc3+ {[%clk 0:01:26]} 20. bxc3 {[%clk 0:01:22]}  Qd7 {[%clk 0:01:19]} 21. Qe2 {[%clk 0:00:58]}  Qd6 {[%clk 0:01:14]} 22. Rd1 {[%clk 0:00:27]}  Qxg3+ {[%clk 0:01:12]} 23. Kd2 {[%clk 0:00:27]}  Rf2 {[%clk 0:01:09]} 24. Rde1 {[%clk 0:00:22]}  Qxg2 {[%clk 0:01:01]} 25. e4 {[%clk 0:00:15]}  Rd8+ {[%clk 0:01:00]} 26. Ke3 {[%clk 0:00:14]}  Qg3+ {[%clk 0:00:54]} 27. Qf3 {[%clk 0:00:14]}  Qxf3# {[%clk 0:00:54]} 0-1


[Site "https://www.chess.com"]

[Event "Titled Tuesday Blitz June 6 Late 2023"]
[White "Fieberg, Samuel"]
[Black "Francisco_Ferrari"]
[WhiteFideId "12901717"]
[WhiteElo "2511"]
[BlackElo "2192"]
[Result "1-0"]
[Round "5"]
[TimeControl "180+2"]
[Date "2023.06.07"]
[WhiteClock "0:00:21"]
[BlackClock "0:00:12"]
[Board "101"]

1. e4 {[%clk 0:02:49]}  e5 {[%clk 0:02:59]} 2. Nf3 {[%clk 0:02:43]}  Nc6 {[%clk 0:02:54]} 3. d4 {[%clk 0:02:43]}  exd4 {[%clk 0:02:53]} 4. Nxd4 {[%clk 0:02:44]}  Nf6 {[%clk 0:02:53]} 5. Nxc6 {[%clk 0:02:44]}  bxc6 {[%clk 0:02:54]} 6. Nd2 {[%clk 0:02:44]}  d6 {[%clk 0:02:47]} 7. Bd3 {[%clk 0:02:42]}  Be7 {[%clk 0:02:46]} 8. O-O {[%clk 0:02:42]}  O-O {[%clk 0:02:46]} 9. f4 {[%clk 0:02:40]}  Bb7 {[%clk 0:02:43]} 10. c3 {[%clk 0:02:37]}  c5 {[%clk 0:02:43]} 11. Qc2 {[%clk 0:02:36]}  h6 {[%clk 0:02:33]} 12. b3 {[%clk 0:02:25]}  Re8 {[%clk 0:02:27]} 13. Bb2 {[%clk 0:02:22]}  Nd7 {[%clk 0:01:52]} 14. c4 {[%clk 0:02:16]}  Bf6 {[%clk 0:01:52]} 15. Rae1 {[%clk 0:02:15]}  Bxb2 {[%clk 0:01:49]} 16. Qxb2 {[%clk 0:02:16]}  Qf6 {[%clk 0:01:49]} 17. Qc2 {[%clk 0:02:12]}  Nb8 {[%clk 0:01:42]} 18. e5 {[%clk 0:02:08]}  dxe5 {[%clk 0:01:09]} 19. fxe5 {[%clk 0:02:09]}  Qe7 {[%clk 0:01:06]} 20. e6 {[%clk 0:02:04]}  fxe6 {[%clk 0:00:57]} 21. Bh7+ {[%clk 0:02:01]}  Kh8 {[%clk 0:00:56]} 22. Qg6 {[%clk 0:01:58]}  Nc6 {[%clk 0:00:35]} 23. Rf7 {[%clk 0:01:56]}  Qg5 {[%clk 0:00:35]} 24. Qxg5 {[%clk 0:01:41]}  hxg5 {[%clk 0:00:36]} 25. Be4 {[%clk 0:01:37]}  Ne5 {[%clk 0:00:19]} 26. Rxc7 {[%clk 0:01:32]}  Bxe4 {[%clk 0:00:16]} 27. Rxe4 {[%clk 0:01:32]}  Nd3 {[%clk 0:00:15]} 28. Nf3 {[%clk 0:01:29]}  Rad8 {[%clk 0:00:12]} 29. Nxg5 {[%clk 0:01:27]}  Rd4 {[%clk 0:00:10]} 30. Rxe6 {[%clk 0:01:16]}  Rf8 {[%clk 0:00:09]} 31. Rf7 {[%clk 0:01:10]}  Rxf7 {[%clk 0:00:07]} 32. Nxf7+ {[%clk 0:01:11]}  Kg8 {[%clk 0:00:08]} 33. Ng5 {[%clk 0:01:08]}  Kf8 {[%clk 0:00:05]} 34. Re3 {[%clk 0:00:52]}  Nf4 {[%clk 0:00:05]} 35. g3 {[%clk 0:00:47]}  Rd1+ {[%clk 0:00:03]} 36. Kf2 {[%clk 0:00:46]}  Rd2+ {[%clk 0:00:01]} 37. Kf3 {[%clk 0:00:45]}  Nd3 {[%clk 0:00:01]} 38. Ne6+ {[%clk 0:00:42]}  Kg8 {[%clk 0:00:01]} 39. Nf4 {[%clk 0:00:39]}  Rf2+ {[%clk 0:00:02]} 40. Kg4 {[%clk 0:00:37]}  Nxf4 {[%clk 0:00:03]} 41. gxf4 {[%clk 0:00:37]}  Rxh2 {[%clk 0:00:03]} 42. Re8+ {[%clk 0:00:36]}  Kf7 {[%clk 0:00:03]} 43. Ra8 {[%clk 0:00:37]}  Rb2 {[%clk 0:00:02]} 44. Rxa7+ {[%clk 0:00:37]}  Kf6 {[%clk 0:00:03]} 45. Ra6+ {[%clk 0:00:37]}  Kf7 {[%clk 0:00:03]} 46. Kf5 {[%clk 0:00:37]}  g6+ {[%clk 0:00:03]} 47. Ke5 {[%clk 0:00:38]}  Kg7 {[%clk 0:00:03]} 48. Ra7+ {[%clk 0:00:37]}  Kh6 {[%clk 0:00:03]} 49. Kd5 {[%clk 0:00:35]}  Rf2 {[%clk 0:00:03]} 50. Kxc5 {[%clk 0:00:34]}  Rxf4 {[%clk 0:00:04]} 51. Kb6 {[%clk 0:00:34]}  g5 {[%clk 0:00:04]} 52. Rd7 {[%clk 0:00:31]}  g4 {[%clk 0:00:04]} 53. c5 {[%clk 0:00:31]}  g3 {[%clk 0:00:05]} 54. Rd3 {[%clk 0:00:29]}  g2 {[%clk 0:00:04]} 55. Rg3 {[%clk 0:00:29]}  Rf2 {[%clk 0:00:04]} 56. a4 {[%clk 0:00:27]}  Rb2 {[%clk 0:00:04]} 57. Kc7 {[%clk 0:00:23]}  Rxb3 {[%clk 0:00:04]} 58. Rxg2 {[%clk 0:00:22]}  Rb4 {[%clk 0:00:04]} 59. Ra2 {[%clk 0:00:21]}  Rc4 {[%clk 0:00:04]} 60. c6 {[%clk 0:00:21]}  Kg5 {[%clk 0:00:05]} 61. a5 {[%clk 0:00:21]}  Kf6 {[%clk 0:00:06]} 62. a6 {[%clk 0:00:21]}  Ke6 {[%clk 0:00:06]} 63. a7 {[%clk 0:00:22]}  Kd5 {[%clk 0:00:07]} 64. Ra5+ {[%clk 0:00:21]}  Ke6 {[%clk 0:00:07]} 65. a8=Q {[%clk 0:00:21]}  Rc5 {[%clk 0:00:08]} 66. Qe8+ {[%clk 0:00:20]}  Kf6 {[%clk 0:00:07]} 67. Qf8+ {[%clk 0:00:20]}  Kg6 {[%clk 0:00:08]} 68. Qxc5 {[%clk 0:00:18]}  Kh6 {[%clk 0:00:08]} 69. Kd7 {[%clk 0:00:19]}  Kg6 {[%clk 0:00:08]} 70. c7 {[%clk 0:00:19]}  Kf6 {[%clk 0:00:09]} 71. c8=Q {[%clk 0:00:20]}  Kg6 {[%clk 0:00:10]} 72. Q8c6+ {[%clk 0:00:20]}  Kg7 {[%clk 0:00:11]} 73. Qe7+ {[%clk 0:00:20]}  Kg8 {[%clk 0:00:12]} 74. Ra8# {[%clk 0:00:21]} 1-0


[Site "https://www.chess.com"]

[Event "Titled Tuesday Blitz June 6 Late 2023"]
[White "Kornyukov, Alexey"]
[Black "Jimenez Almeida, Luis David"]
[WhiteFideId "4150457"]
[BlackFideId "22242244"]
[WhiteElo "2352"]
[BlackElo "2245"]
[Result "0-1"]
[Round "5"]
[TimeControl "180+2"]
[Date "2023.06.07"]
[WhiteClock "0:00:03"]
[BlackClock "0:00:37"]
[Board "102"]

1. d4 {[%clk 0:03:00]}  g6 {[%clk 0:02:59]} 2. c4 {[%clk 0:03:00]}  Bg7 {[%clk 0:02:59]} 3. Nc3 {[%clk 0:03:00]}  c5 {[%clk 0:02:59]} 4. d5 {[%clk 0:02:59]}  Bxc3+ {[%clk 0:02:59]} 5. bxc3 {[%clk 0:02:59]}  Qa5 {[%clk 0:02:59]} 6. Qc2 {[%clk 0:02:41]}  f5 {[%clk 0:02:58]} 7. e4 {[%clk 0:02:35]}  fxe4 {[%clk 0:02:58]} 8. f3 {[%clk 0:02:31]}  Nf6 {[%clk 0:02:58]} 9. fxe4 {[%clk 0:02:23]}  Nxe4 {[%clk 0:02:59]} 10. Bd3 {[%clk 0:02:16]}  Nf6 {[%clk 0:02:49]} 11. Nf3 {[%clk 0:02:16]}  d6 {[%clk 0:02:44]} 12. O-O {[%clk 0:02:14]}  Nbd7 {[%clk 0:02:37]} 13. Bf4 {[%clk 0:02:09]}  Nh5 {[%clk 0:02:12]} 14. Bh6 {[%clk 0:01:40]}  Ndf6 {[%clk 0:02:08]} 15. Rae1 {[%clk 0:01:35]}  Bd7 {[%clk 0:01:59]} 16. Bxg6+ {[%clk 0:00:54]}  hxg6 {[%clk 0:01:58]} 17. Qxg6+ {[%clk 0:00:55]}  Kd8 {[%clk 0:01:58]} 18. Bg5 {[%clk 0:00:46]}  Qxc3 {[%clk 0:01:42]} 19. Qf7 {[%clk 0:00:33]}  Re8 {[%clk 0:01:29]} 20. Re3 {[%clk 0:00:26]}  Qxc4 {[%clk 0:01:21]} 21. Rfe1 {[%clk 0:00:20]}  Qxd5 {[%clk 0:01:16]} 22. Qg6 {[%clk 0:00:19]}  Rg8 {[%clk 0:01:02]} 23. Qh6 {[%clk 0:00:05]}  Kc7 {[%clk 0:00:53]} 24. Rxe7 {[%clk 0:00:05]}  Rae8 {[%clk 0:00:41]} 25. Bxf6 {[%clk 0:00:03]}  Qxf3 {[%clk 0:00:37]} 0-1


[Site "https://www.chess.com"]

[Event "Titled Tuesday Blitz June 6 Late 2023"]
[White "Pinheiro, Iung Alicio de O."]
[Black "Torres Dominguez, David"]
[WhiteFideId "2104350"]
[BlackFideId "2220857"]
[WhiteElo "2283"]
[BlackElo "1999"]
[Result "1-0"]
[Round "5"]
[TimeControl "180+2"]
[Date "2023.06.07"]
[WhiteClock "0:00:03"]
[BlackClock "0:00:02"]
[Board "103"]

1. e4 {[%clk 0:03:00]}  Nc6 {[%clk 0:02:16]} 2. Nf3 {[%clk 0:02:58]}  e5 {[%clk 0:02:15]} 3. Bc4 {[%clk 0:02:51]}  Bc5 {[%clk 0:02:15]} 4. b4 {[%clk 0:02:51]}  Bxb4 {[%clk 0:02:14]} 5. c3 {[%clk 0:02:51]}  Be7 {[%clk 0:02:15]} 6. d4 {[%clk 0:02:50]}  Nf6 {[%clk 0:02:15]} 7. dxe5 {[%clk 0:02:42]}  Ng4 {[%clk 0:02:14]} 8. Bf4 {[%clk 0:02:09]}  d6 {[%clk 0:02:13]} 9. exd6 {[%clk 0:02:05]}  Bxd6 {[%clk 0:01:53]} 10. Bxd6 {[%clk 0:02:00]}  Qxd6 {[%clk 0:01:54]} 11. Qxd6 {[%clk 0:01:49]}  cxd6 {[%clk 0:01:55]} 12. Nbd2 {[%clk 0:01:49]}  Ke7 {[%clk 0:01:27]} 13. Rb1 {[%clk 0:01:45]}  b6 {[%clk 0:01:27]} 14. Bd5 {[%clk 0:01:42]}  Bd7 {[%clk 0:01:24]} 15. Nc4 {[%clk 0:01:39]}  Rac8 {[%clk 0:01:23]} 16. O-O {[%clk 0:01:10]}  Nce5 {[%clk 0:01:20]} 17. Nfd2 {[%clk 0:00:41]}  Nxc4 {[%clk 0:01:17]} 18. Nxc4 {[%clk 0:00:42]}  Ne5 {[%clk 0:01:17]} 19. Nxe5 {[%clk 0:00:24]}  dxe5 {[%clk 0:01:18]} 20. c4 {[%clk 0:00:25]}  f6 {[%clk 0:01:10]} 21. f4 {[%clk 0:00:24]}  exf4 {[%clk 0:01:10]} 22. Rxf4 {[%clk 0:00:25]}  Be6 {[%clk 0:01:05]} 23. Re1 {[%clk 0:00:20]}  Rhe8 {[%clk 0:01:03]} 24. e5 {[%clk 0:00:19]}  fxe5 {[%clk 0:00:31]} 25. Rxe5 {[%clk 0:00:20]}  Kd6 {[%clk 0:00:31]} 26. Rfe4 {[%clk 0:00:19]}  Bd7 {[%clk 0:00:32]} 27. Rxe8 {[%clk 0:00:18]}  Rxe8 {[%clk 0:00:32]} 28. Rh4 {[%clk 0:00:18]}  h6 {[%clk 0:00:31]} 29. Kf2 {[%clk 0:00:18]}  Be6 {[%clk 0:00:28]} 30. Rd4 {[%clk 0:00:16]}  Kc5 {[%clk 0:00:25]} 31. Rd1 {[%clk 0:00:16]}  Bxd5 {[%clk 0:00:25]} 32. cxd5 {[%clk 0:00:16]}  Rd8 {[%clk 0:00:25]} 33. Rc1+ {[%clk 0:00:17]}  Kd6 {[%clk 0:00:24]} 34. Rc6+ {[%clk 0:00:16]}  Kxd5 {[%clk 0:00:24]} 35. Rc7 {[%clk 0:00:17]}  a5 {[%clk 0:00:19]} 36. Rxg7 {[%clk 0:00:17]}  Kc5 {[%clk 0:00:19]} 37. Rg6 {[%clk 0:00:16]}  Rd2+ {[%clk 0:00:19]} 38. Kf3 {[%clk 0:00:16]}  a4 {[%clk 0:00:18]} 39. Rxh6 {[%clk 0:00:15]}  a3 {[%clk 0:00:18]} 40. Rh8 {[%clk 0:00:16]}  Rxa2 {[%clk 0:00:18]} 41. h4 {[%clk 0:00:16]}  b5 {[%clk 0:00:16]} 42. h5 {[%clk 0:00:16]}  Ra1 {[%clk 0:00:16]} 43. h6 {[%clk 0:00:15]}  Rh1 {[%clk 0:00:16]} 44. h7 {[%clk 0:00:12]}  Kb4 {[%clk 0:00:16]} 45. g4 {[%clk 0:00:11]}  a2 {[%clk 0:00:16]} 46. Ra8 {[%clk 0:00:11]}  Kb3 {[%clk 0:00:15]} 47. g5 {[%clk 0:00:06]}  Kb2 {[%clk 0:00:15]} 48. g6 {[%clk 0:00:06]}  b4 {[%clk 0:00:08]} 49. g7 {[%clk 0:00:04]}  a1=Q {[%clk 0:00:04]} 50. Rxa1 {[%clk 0:00:03]}  Kxa1 {[%clk 0:00:05]} 51. h8=Q {[%clk 0:00:03]}  Rf1+ {[%clk 0:00:02]} 52. Ke2 {[%clk 0:00:03]}  Rb1 {[%clk 0:00:02]} 53. g8=Q+ {[%clk 0:00:03]} 1-0


[Site "https://www.chess.com"]